[Event "Titled Tuesday Blitz March 01 Early 2022"]
[White "Tashkov, Rumen"]
[Black "Lauridsen, Jesper Morch"]
[WhiteFideId "2904004"]
[BlackFideId "1401890"]
[WhiteElo "2181"]
[BlackElo "2175"]
[Result "0-1"]
[Round "05"]
[TimeControl "180+1"]
[Date "2022.03.01"]
[WhiteClock "0:00:16"]
[BlackClock "0:01:00"]

1. d4 {[%clk 0:03:00]}  Nf6 {[%clk 0:02:57]} 2. c4 {[%clk 0:03:00]}  e6 {[%clk 0:02:57]} 3. g3 {[%clk 0:03:00]}  c5 {[%clk 0:02:56]} 4. d5 {[%clk 0:02:59]}  exd5 {[%clk 0:02:56]} 5. cxd5 {[%clk 0:03:00]}  b5 {[%clk 0:02:56]} 6. Nf3 {[%clk 0:02:58]}  d6 {[%clk 0:02:56]} 7. e4 {[%clk 0:02:58]}  Bg4 {[%clk 0:02:52]} 8. Bxb5+ {[%clk 0:02:56]}  Nbd7 {[%clk 0:02:52]} 9. Nc3 {[%clk 0:02:50]}  Be7 {[%clk 0:02:51]} 10. h3 {[%clk 0:02:48]}  Bxf3 {[%clk 0:02:50]} 11. Qxf3 {[%clk 0:02:48]}  O-O {[%clk 0:02:50]} 12. O-O {[%clk 0:02:43]}  Ne5 {[%clk 0:02:46]} 13. Qd1 {[%clk 0:02:42]}  c4 {[%clk 0:02:43]} 14. f4 {[%clk 0:02:23]}  Nd3 {[%clk 0:02:37]} 15. Bxc4 {[%clk 0:02:18]}  Qb6+ {[%clk 0:02:37]} 16. Kg2 {[%clk 0:02:17]}  Nxb2 {[%clk 0:02:27]} 17. Qb3 {[%clk 0:01:14]}  Nxc4 {[%clk 0:02:23]} 18. Qxc4 {[%clk 0:01:15]}  Rfc8 {[%clk 0:02:22]} 19. Qd3 {[%clk 0:01:15]}  Rxc3 {[%clk 0:02:15]} 20. Qxc3 {[%clk 0:01:13]}  Nxe4 {[%clk 0:02:15]} 21. Qe3 {[%clk 0:01:10]}  Bf6 {[%clk 0:01:52]} 22. Qxb6 {[%clk 0:00:56]}  axb6 {[%clk 0:01:51]} 23. Rb1 {[%clk 0:00:54]}  Rxa2+ {[%clk 0:01:51]} 24. Kf3 {[%clk 0:00:52]}  Nc5 {[%clk 0:01:21]} 25. Rxb6 {[%clk 0:00:50]}  g6 {[%clk 0:01:20]} 26. Rxd6 {[%clk 0:00:45]}  Kg7 {[%clk 0:01:20]} 27. Rc6 {[%clk 0:00:44]}  Nd3 {[%clk 0:01:18]} 28. Be3 {[%clk 0:00:42]}  Nb4 {[%clk 0:01:12]} 29. Rd6 {[%clk 0:00:33]}  Ra3 {[%clk 0:01:09]} 30. Rd7 {[%clk 0:00:30]}  Nc2 {[%clk 0:01:05]} 31. Rc1 {[%clk 0:00:22]}  Nxe3 {[%clk 0:01:04]} 32. Rcc7 {[%clk 0:00:21]}  Nxd5+ {[%clk 0:01:03]} 33. Ke4 {[%clk 0:00:16]}  Nxc7 {[%clk 0:01:02]} 34. Rxc7 {[%clk 0:00:16]}  Rxg3 {[%clk 0:01:00]} 0-1


[Site "https://www.chess.com"]

[Event "Titled Tuesday Blitz March 01 Early 2022"]
[White "Terzi, Alexei"]
[Black "Kirillov, Dmitry"]
[WhiteFideId "13505076"]
[BlackFideId "34180572"]
[WhiteElo "2031"]
[BlackElo "2076"]
[Result "1-0"]
[Round "05"]
[TimeControl "180+1"]
[Date "2022.03.01"]
[WhiteClock "0:00:21"]
[BlackClock "0:00:03"]

1. e4 {[%clk 0:03:00]}  c5 {[%clk 0:02:59]} 2. Nc3 {[%clk 0:02:59]}  e6 {[%clk 0:02:59]} 3. f4 {[%clk 0:02:58]}  d5 {[%clk 0:02:58]} 4. Nf3 {[%clk 0:02:58]}  dxe4 {[%clk 0:02:58]} 5. Nxe4 {[%clk 0:02:57]}  Nc6 {[%clk 0:02:59]} 6. Bb5 {[%clk 0:02:57]}  Bd7 {[%clk 0:02:59]} 7. O-O {[%clk 0:02:55]}  Be7 {[%clk 0:02:58]} 8. Qe2 {[%clk 0:02:46]}  Nf6 {[%clk 0:02:58]} 9. Nxf6+ {[%clk 0:02:27]}  Bxf6 {[%clk 0:02:58]} 10. Bxc6 {[%clk 0:02:25]}  Bxc6 {[%clk 0:02:52]} 11. f5 {[%clk 0:02:23]}  O-O {[%clk 0:02:34]} 12. fxe6 {[%clk 0:02:22]}  fxe6 {[%clk 0:02:35]} 13. Qxe6+ {[%clk 0:02:21]}  Kh8 {[%clk 0:02:35]} 14. d3 {[%clk 0:02:19]}  Bxf3 {[%clk 0:02:19]} 15. Rxf3 {[%clk 0:02:17]}  Bd4+ {[%clk 0:02:19]} 16. Kh1 {[%clk 0:02:11]}  Rxf3 {[%clk 0:02:18]} 17. gxf3 {[%clk 0:02:12]}  Qh4 {[%clk 0:02:18]} 18. Be3 {[%clk 0:01:53]}  Qh5 {[%clk 0:01:59]} 19. Bxd4 {[%clk 0:01:39]}  Qxf3+ {[%clk 0:01:57]} 20. Kg1 {[%clk 0:01:40]}  cxd4 {[%clk 0:01:56]} 21. Rf1 {[%clk 0:01:39]}  Qh5 {[%clk 0:01:49]} 22. Qf7 {[%clk 0:01:28]}  Qg5+ {[%clk 0:01:31]} 23. Kh1 {[%clk 0:01:26]}  h6 {[%clk 0:01:32]} 24. Qxb7 {[%clk 0:01:19]}  Re8 {[%clk 0:01:31]} 25. Qg2 {[%clk 0:01:17]}  Qh5 {[%clk 0:01:27]} 26. Rg1 {[%clk 0:01:10]}  Qf7 {[%clk 0:01:14]} 27. c3 {[%clk 0:01:08]}  Qf6 {[%clk 0:00:50]} 28. c4 {[%clk 0:01:04]}  Re3 {[%clk 0:00:49]} 29. c5 {[%clk 0:01:03]}  Rf3 {[%clk 0:00:45]} 30. c6 {[%clk 0:00:42]}  Rf2 {[%clk 0:00:45]} 31. c7 {[%clk 0:00:42]}  Rxg2 {[%clk 0:00:45]} 32. c8=Q+ {[%clk 0:00:41]}  Kh7 {[%clk 0:00:45]} 33. Kxg2 {[%clk 0:00:38]}  Qg5+ {[%clk 0:00:25]} 34. Kh1 {[%clk 0:00:37]}  Qd5+ {[%clk 0:00:25]} 35. Rg2 {[%clk 0:00:37]}  Qf3 {[%clk 0:00:26]} 36. Qc1 {[%clk 0:00:33]}  h5 {[%clk 0:00:20]} 37. Qd2 {[%clk 0:00:27]}  h4 {[%clk 0:00:18]} 38. Qe2 {[%clk 0:00:26]}  Qf6 {[%clk 0:00:11]} 39. Qe4+ {[%clk 0:00:25]}  Kh8 {[%clk 0:00:10]} 40. Rg1 {[%clk 0:00:24]}  g5 {[%clk 0:00:05]} 41. Rc1 {[%clk 0:00:22]}  Kg7 {[%clk 0:00:03]} 42. Rc7+ {[%clk 0:00:21]} 1-0


[Site "https://www.chess.com"]

[Event "Titled Tuesday Blitz March 01 Early 2022"]
[White "Van Foreest, Jorden"]
[Black "Nasyrova, Ekaterina"]
[WhiteFideId "1039784"]
[BlackFideId "44157797"]
[WhiteElo "2609"]
[BlackElo "2068"]
[Result "1-0"]
[Round "05"]
[TimeControl "180+1"]
[Date "2022.03.01"]
[WhiteClock "0:01:14"]
[BlackClock "0:00:03"]

1. b3 {[%clk 0:03:00]}  d5 {[%clk 0:02:59]} 2. Bb2 {[%clk 0:03:01]}  Nf6 {[%clk 0:02:59]} 3. g3 {[%clk 0:03:02]}  e6 {[%clk 0:02:59]} 4. Bg2 {[%clk 0:03:02]}  Bd6 {[%clk 0:02:59]} 5. Nf3 {[%clk 0:03:01]}  O-O {[%clk 0:02:59]} 6. c4 {[%clk 0:03:02]}  Nbd7 {[%clk 0:02:59]} 7. O-O {[%clk 0:03:02]}  b6 {[%clk 0:02:59]} 8. Nc3 {[%clk 0:03:01]}  a6 {[%clk 0:02:58]} 9. cxd5 {[%clk 0:02:58]}  exd5 {[%clk 0:02:58]} 10. Nd4 {[%clk 0:02:58]}  Bb7 {[%clk 0:02:56]} 11. Nf5 {[%clk 0:02:59]}  Bc5 {[%clk 0:02:27]} 12. Rc1 {[%clk 0:02:48]}  Re8 {[%clk 0:02:23]} 13. e3 {[%clk 0:02:33]}  Bf8 {[%clk 0:02:14]} 14. Ne2 {[%clk 0:02:33]}  Ne5 {[%clk 0:01:58]} 15. Nf4 {[%clk 0:02:32]}  g6 {[%clk 0:01:45]} 16. Nd4 {[%clk 0:02:27]}  Bg7 {[%clk 0:01:34]} 17. d3 {[%clk 0:02:21]}  c5 {[%clk 0:01:27]} 18. Nde2 {[%clk 0:02:21]}  Qd7 {[%clk 0:01:06]} 19. d4 {[%clk 0:02:21]}  cxd4 {[%clk 0:01:04]} 20. Bxd4 {[%clk 0:02:20]}  b5 {[%clk 0:01:00]} 21. Nc3 {[%clk 0:02:20]}  b4 {[%clk 0:00:23]} 22. Na4 {[%clk 0:02:19]}  Bc6 {[%clk 0:00:23]} 23. Nb6 {[%clk 0:02:18]}  Qb7 {[%clk 0:00:23]} 24. Nxa8 {[%clk 0:02:19]}  Qxa8 {[%clk 0:00:24]} 25. Qd2 {[%clk 0:02:14]}  Ne4 {[%clk 0:00:23]} 26. Qxb4 {[%clk 0:02:11]}  Bb5 {[%clk 0:00:18]} 27. Rfd1 {[%clk 0:02:09]}  Nc6 {[%clk 0:00:14]} 28. Rxc6 {[%clk 0:02:02]}  Bxc6 {[%clk 0:00:14]} 29. Bxg7 {[%clk 0:02:03]}  Kxg7 {[%clk 0:00:14]} 30. Qd4+ {[%clk 0:02:01]}  f6 {[%clk 0:00:14]} 31. Nxd5 {[%clk 0:02:01]}  Bxd5 {[%clk 0:00:12]} 32. Qxd5 {[%clk 0:02:02]}  Qxd5 {[%clk 0:00:12]} 33. Rxd5 {[%clk 0:02:03]}  Nc3 {[%clk 0:00:12]} 34. Ra5 {[%clk 0:01:58]}  Re6 {[%clk 0:00:11]} 35. Bf1 {[%clk 0:01:58]}  Rd6 {[%clk 0:00:10]} 36. Rxa6 {[%clk 0:01:57]}  Rd1 {[%clk 0:00:09]} 37. a4 {[%clk 0:01:53]}  Rd2 {[%clk 0:00:08]} 38. Ra7+ {[%clk 0:01:47]}  Kh6 {[%clk 0:00:08]} 39. Re7 {[%clk 0:01:43]}  f5 {[%clk 0:00:08]} 40. a5 {[%clk 0:01:33]}  Rb2 {[%clk 0:00:05]} 41. a6 {[%clk 0:01:33]}  Rxb3 {[%clk 0:00:05]} 42. a7 {[%clk 0:01:29]}  Ra3 {[%clk 0:00:06]} 43. h4 {[%clk 0:01:28]}  Ne4 {[%clk 0:00:05]} 44. Bc4 {[%clk 0:01:27]}  Nd6 {[%clk 0:00:04]} 45. Bd5 {[%clk 0:01:25]}  Nc8 {[%clk 0:00:05]} 46. Rc7 {[%clk 0:01:14]}  Nxa7 {[%clk 0:00:05]} 47. Bg8 {[%clk 0:01:15]}  Kh5 {[%clk 0:00:03]} 48. Rxh7+ {[%clk 0:01:14]}  Kg4 {[%clk 0:00:03]} 49. Kg2 {[%clk 0:01:14]} 1-0


[Site "https://www.chess.com"]

[Event "Titled Tuesday Blitz March 01 Early 2022"]
[White "Vifleemskaia, Svetlana"]
[Black "Gaehwiler, Gabriel"]
[WhiteFideId "4129490"]
[BlackFideId "1314530"]
[WhiteElo "1901"]
[BlackElo "2383"]
[Result "0-1"]
[Round "05"]
[TimeControl "180+1"]
[Date "2022.03.01"]
[WhiteClock "0:00:01"]
[BlackClock "0:00:49"]

1. d4 {[%clk 0:03:00]}  Nf6 {[%clk 0:02:58]} 2. c4 {[%clk 0:02:58]}  g6 {[%clk 0:02:57]} 3. Nc3 {[%clk 0:02:56]}  Bg7 {[%clk 0:02:58]} 4. e4 {[%clk 0:02:56]}  O-O {[%clk 0:02:58]} 5. Nge2 {[%clk 0:02:55]}  d6 {[%clk 0:02:59]} 6. Ng3 {[%clk 0:02:54]}  e5 {[%clk 0:02:59]} 7. d5 {[%clk 0:02:53]}  a5 {[%clk 0:02:59]} 8. Be2 {[%clk 0:02:52]}  Na6 {[%clk 0:02:59]} 9. O-O {[%clk 0:02:51]}  Nc5 {[%clk 0:02:58]} 10. Be3 {[%clk 0:02:50]}  b6 {[%clk 0:02:58]} 11. Qd2 {[%clk 0:02:48]}  h5 {[%clk 0:02:56]} 12. Bg5 {[%clk 0:02:47]}  Qd7 {[%clk 0:02:54]} 13. h3 {[%clk 0:02:27]}  Nh7 {[%clk 0:02:52]} 14. Bh6 {[%clk 0:02:26]}  Qe7 {[%clk 0:02:45]} 15. Bxg7 {[%clk 0:02:23]}  Kxg7 {[%clk 0:02:46]} 16. Bd3 {[%clk 0:02:21]}  Bd7 {[%clk 0:02:38]} 17. Rae1 {[%clk 0:02:18]}  Ng5 {[%clk 0:02:24]} 18. Bc2 {[%clk 0:02:11]}  Bxh3 {[%clk 0:02:10]} 19. f4 {[%clk 0:02:01]}  exf4 {[%clk 0:02:06]} 20. Qxf4 {[%clk 0:01:58]}  Nd7 {[%clk 0:01:46]} 21. Kh2 {[%clk 0:01:46]}  Bg4 {[%clk 0:01:45]} 22. Bd1 {[%clk 0:01:28]}  Qe5 {[%clk 0:01:36]} 23. Nb5 {[%clk 0:01:21]}  Qxf4 {[%clk 0:01:31]} 24. Rxf4 {[%clk 0:01:19]}  Bxd1 {[%clk 0:01:31]} 25. Rxd1 {[%clk 0:01:18]}  Rac8 {[%clk 0:01:28]} 26. Ne2 {[%clk 0:01:10]}  Ne5 {[%clk 0:01:26]} 27. b3 {[%clk 0:01:07]}  Rfe8 {[%clk 0:01:24]} 28. Kg3 {[%clk 0:01:04]}  Nd7 {[%clk 0:01:16]} 29. Nec3 {[%clk 0:00:59]}  Nc5 {[%clk 0:01:16]} 30. Rd4 {[%clk 0:00:53]}  Re7 {[%clk 0:01:13]} 31. Na7 {[%clk 0:00:39]}  Rce8 {[%clk 0:01:04]} 32. Nc6 {[%clk 0:00:37]}  Re5 {[%clk 0:01:01]} 33. Nb5 {[%clk 0:00:18]}  Ngxe4+ {[%clk 0:01:00]} 34. Kh2 {[%clk 0:00:17]}  f5 {[%clk 0:00:55]} 35. Nxc7 {[%clk 0:00:14]}  Nc3 {[%clk 0:00:51]} 36. Nxe8+ {[%clk 0:00:11]}  Rxe8 {[%clk 0:00:51]} 37. Rf1 {[%clk 0:00:05]}  Re2 {[%clk 0:00:50]} 38. Rf3 {[%clk 0:00:02]}  Nxa2 {[%clk 0:00:49]} 39. b4 {[%clk 0:00:02]}  Nxb4 {[%clk 0:00:49]} 40. Nxb4 {[%clk 0:00:02]}  axb4 {[%clk 0:00:49]} 41. Rd1 {[%clk 0:00:02]}  b3 {[%clk 0:00:50]} 42. Rb1 {[%clk 0:00:01]}  Rc2 {[%clk 0:00:49]} 43. Kg3 {[%clk 0:00:01]}  Rxc4 {[%clk 0:00:49]} 0-1


[Site "https://www.chess.com"]

[Event "Titled Tuesday Blitz March 01 Early 2022"]
[White "Viskelis, Darius"]
[Black "Valle Maytin, Luis Enrique"]
[WhiteFideId "12800830"]
[BlackFideId "3503666"]
[WhiteElo "1999"]
[BlackElo "2043"]
[Result "1/2-1/2"]
[Round "05"]
[TimeControl "180+1"]
[Date "2022.03.01"]
[WhiteClock "0:00:06"]
[BlackClock "0:00:21"]

1. e4 {[%clk 0:02:55]}  c6 {[%clk 0:02:58]} 2. d4 {[%clk 0:02:55]}  d5 {[%clk 0:02:59]} 3. exd5 {[%clk 0:02:55]}  cxd5 {[%clk 0:03:00]} 4. c4 {[%clk 0:02:55]}  Nf6 {[%clk 0:02:59]} 5. Nc3 {[%clk 0:02:55]}  g6 {[%clk 0:02:58]} 6. cxd5 {[%clk 0:02:55]}  Bg7 {[%clk 0:02:58]} 7. Bb5+ {[%clk 0:02:55]}  Bd7 {[%clk 0:02:58]} 8. Bxd7+ {[%clk 0:02:53]}  Nbxd7 {[%clk 0:02:59]} 9. d6 {[%clk 0:02:48]}  O-O {[%clk 0:03:00]} 10. dxe7 {[%clk 0:02:47]}  Qxe7+ {[%clk 0:03:00]} 11. Nge2 {[%clk 0:02:47]}  Nb6 {[%clk 0:03:00]} 12. O-O {[%clk 0:02:47]}  Rad8 {[%clk 0:03:00]} 13. Be3 {[%clk 0:02:46]}  Ne4 {[%clk 0:03:00]} 14. Nxe4 {[%clk 0:02:45]}  Qxe4 {[%clk 0:03:00]} 15. Rc1 {[%clk 0:02:40]}  Qe6 {[%clk 0:02:38]} 16. b3 {[%clk 0:02:33]}  Nd5 {[%clk 0:02:23]} 17. Bg5 {[%clk 0:02:30]}  Rd7 {[%clk 0:02:14]} 18. Re1 {[%clk 0:02:29]}  Qg4 {[%clk 0:01:58]} 19. Qd2 {[%clk 0:02:27]}  h5 {[%clk 0:01:29]} 20. h3 {[%clk 0:02:23]}  Qe6 {[%clk 0:01:23]} 21. Ng3 {[%clk 0:01:42]}  Qa6 {[%clk 0:01:19]} 22. Ne4 {[%clk 0:01:42]}  b6 {[%clk 0:01:08]} 23. Bh6 {[%clk 0:01:41]}  Qb7 {[%clk 0:01:03]} 24. Bxg7 {[%clk 0:01:40]}  Kxg7 {[%clk 0:01:01]} 25. Ng3 {[%clk 0:01:18]}  Nf6 {[%clk 0:00:59]} 26. Qg5 {[%clk 0:01:14]}  Nh7 {[%clk 0:00:52]} 27. Qe5+ {[%clk 0:00:45]}  Kg8 {[%clk 0:00:37]} 28. Ne4 {[%clk 0:00:37]}  Rd5 {[%clk 0:00:31]} 29. Qf4 {[%clk 0:00:33]}  Rf5 {[%clk 0:00:31]} 30. Qg3 {[%clk 0:00:31]}  Qd5 {[%clk 0:00:26]} 31. Rcd1 {[%clk 0:00:24]}  Ng5 {[%clk 0:00:25]} 32. Nxg5 {[%clk 0:00:23]}  Rxg5 {[%clk 0:00:26]} 33. Qh2 {[%clk 0:00:20]}  Kg7 {[%clk 0:00:26]} 34. h4 {[%clk 0:00:20]}  Rg4 {[%clk 0:00:23]} 35. Qe5+ {[%clk 0:00:20]}  Qxe5 {[%clk 0:00:22]} 36. dxe5 {[%clk 0:00:20]}  Rxh4 {[%clk 0:00:22]} 37. Rd7 {[%clk 0:00:20]}  a5 {[%clk 0:00:22]} 38. Rb7 {[%clk 0:00:20]}  Rb4 {[%clk 0:00:21]} 39. e6 {[%clk 0:00:20]}  Re8 {[%clk 0:00:20]} 40. Rxf7+ {[%clk 0:00:19]}  Kg8 {[%clk 0:00:20]} 41. Rb7 {[%clk 0:00:17]}  a4 {[%clk 0:00:20]} 42. bxa4 {[%clk 0:00:16]}  Rxa4 {[%clk 0:00:21]} 43. e7 {[%clk 0:00:15]}  Rxa2 {[%clk 0:00:21]} 44. Rxb6 {[%clk 0:00:15]}  Kf7 {[%clk 0:00:21]} 45. Rb3 {[%clk 0:00:14]}  Rxe7 {[%clk 0:00:20]} 46. Rf3+ {[%clk 0:00:13]}  Ke8 {[%clk 0:00:21]} 47. Rc1 {[%clk 0:00:11]}  Ra8 {[%clk 0:00:20]} 48. Kh2 {[%clk 0:00:11]}  Re6 {[%clk 0:00:20]} 49. Rc5 {[%clk 0:00:10]}  Ra7 {[%clk 0:00:20]} 50. Rg3 {[%clk 0:00:10]}  Ke7 {[%clk 0:00:20]} 51. Rf3 {[%clk 0:00:10]}  Rf6 {[%clk 0:00:20]} 52. Re5+ {[%clk 0:00:09]}  Kf7 {[%clk 0:00:20]} 53. Rxf6+ {[%clk 0:00:09]}  Kxf6 {[%clk 0:00:21]} 54. f4 {[%clk 0:00:09]}  Re7 {[%clk 0:00:22]} 55. Rxe7 {[%clk 0:00:08]}  Kxe7 {[%clk 0:00:23]} 56. Kg3 {[%clk 0:00:09]}  Kf6 {[%clk 0:00:23]} 57. Kh4 {[%clk 0:00:09]}  Kf7 {[%clk 0:00:24]} 58. Kg5 {[%clk 0:00:09]}  Kg7 {[%clk 0:00:25]} 59. g3 {[%clk 0:00:07]}  Kf7 {[%clk 0:00:26]} 60. Kh6 {[%clk 0:00:07]}  Kf6 {[%clk 0:00:26]} 61. Kh7 {[%clk 0:00:07]}  Kf5 {[%clk 0:00:24]} 62. Kg7 {[%clk 0:00:06]}  g5 {[%clk 0:00:23]} 63. fxg5 {[%clk 0:00:05]}  Kxg5 {[%clk 0:00:22]} 64. Kh7 {[%clk 0:00:05]}  Kf5 {[%clk 0:00:20]} 65. Kh6 {[%clk 0:00:06]}  Kg4 {[%clk 0:00:21]} 66. Kg6 {[%clk 0:00:06]}  h4 {[%clk 0:00:20]} 67. gxh4 {[%clk 0:00:06]}  Kxh4 {[%clk 0:00:21]} 1/2-1/2


[Site "https://www.chess.com"]

[Event "Titled Tuesday Blitz March 01 Early 2022"]
[White "Vlassov, Nikolai"]
[Black "Durarbayli, Vasif"]
[WhiteFideId "4103360"]
[BlackFideId "13402935"]
[WhiteElo "2407"]
[BlackElo "2528"]
[Result "1/2-1/2"]
[Round "05"]
[TimeControl "180+1"]
[Date "2022.03.01"]
[WhiteClock "0:00:13"]
[BlackClock "0:00:05"]

1. e4 {[%clk 0:03:00]}  c5 {[%clk 0:02:57]} 2. c3 {[%clk 0:03:00]}  d5 {[%clk 0:02:56]} 3. exd5 {[%clk 0:03:00]}  Qxd5 {[%clk 0:02:57]} 4. d4 {[%clk 0:03:00]}  Nf6 {[%clk 0:02:57]} 5. Nf3 {[%clk 0:03:01]}  e6 {[%clk 0:02:57]} 6. a3 {[%clk 0:03:00]}  Nc6 {[%clk 0:02:40]} 7. Be3 {[%clk 0:03:00]}  cxd4 {[%clk 0:02:36]} 8. cxd4 {[%clk 0:03:00]}  Be7 {[%clk 0:02:36]} 9. Nc3 {[%clk 0:03:00]}  Qd6 {[%clk 0:02:35]} 10. Qc2 {[%clk 0:02:59]}  O-O {[%clk 0:02:34]} 11. Bd3 {[%clk 0:02:59]}  b6 {[%clk 0:02:07]} 12. Ne4 {[%clk 0:02:58]}  Nxe4 {[%clk 0:01:43]} 13. Bxe4 {[%clk 0:02:58]}  Bb7 {[%clk 0:01:43]} 14. Bxh7+ {[%clk 0:02:58]}  Kh8 {[%clk 0:01:44]} 15. Be4 {[%clk 0:02:50]}  Rac8 {[%clk 0:01:43]} 16. Qe2 {[%clk 0:02:49]}  f5 {[%clk 0:01:41]} 17. Bc2 {[%clk 0:02:49]}  Bf6 {[%clk 0:01:31]} 18. Rd1 {[%clk 0:02:40]}  Ne7 {[%clk 0:01:30]} 19. Bb3 {[%clk 0:02:34]}  Bd5 {[%clk 0:01:20]} 20. Bxd5 {[%clk 0:02:32]}  Nxd5 {[%clk 0:01:21]} 21. O-O {[%clk 0:02:31]}  Rc6 {[%clk 0:01:17]} 22. Rc1 {[%clk 0:02:25]}  Rfc8 {[%clk 0:01:17]} 23. Rxc6 {[%clk 0:02:24]}  Qxc6 {[%clk 0:01:18]} 24. Bg5 {[%clk 0:02:10]}  Bxg5 {[%clk 0:01:00]} 25. Nxg5 {[%clk 0:02:10]}  Nf4 {[%clk 0:01:01]} 26. Qf3 {[%clk 0:02:01]}  Qxf3 {[%clk 0:01:01]} 27. gxf3 {[%clk 0:01:55]}  Rc2 {[%clk 0:01:02]} 28. Re1 {[%clk 0:01:51]}  Rxb2 {[%clk 0:00:49]} 29. Nxe6 {[%clk 0:01:49]}  Nh3+ {[%clk 0:00:20]} 30. Kg2 {[%clk 0:01:48]}  Nxf2 {[%clk 0:00:21]} 31. Kg3 {[%clk 0:01:44]}  Nd3 {[%clk 0:00:21]} 32. Re3 {[%clk 0:01:32]}  Rd2 {[%clk 0:00:18]} 33. f4 {[%clk 0:01:24]}  Kh7 {[%clk 0:00:16]} 34. h3 {[%clk 0:01:13]}  Kg6 {[%clk 0:00:15]} 35. Ng5 {[%clk 0:01:04]}  Nxf4 {[%clk 0:00:15]} 36. Kxf4 {[%clk 0:00:57]}  Rxd4+ {[%clk 0:00:14]} 37. Ke5 {[%clk 0:00:58]}  Ra4 {[%clk 0:00:07]} 38. Ne6 {[%clk 0:00:50]}  Ra5+ {[%clk 0:00:07]} 39. Kd6 {[%clk 0:00:49]}  Kf6 {[%clk 0:00:07]} 40. Nc7 {[%clk 0:00:46]}  f4 {[%clk 0:00:06]} 41. Re8 {[%clk 0:00:39]}  g5 {[%clk 0:00:06]} 42. Rf8+ {[%clk 0:00:36]}  Kg6 {[%clk 0:00:05]} 43. Ne6 {[%clk 0:00:34]}  Rxa3 {[%clk 0:00:05]} 44. Rg8+ {[%clk 0:00:34]}  Kf6 {[%clk 0:00:06]} 45. Nxg5 {[%clk 0:00:33]}  Rd3+ {[%clk 0:00:05]} 46. Kc6 {[%clk 0:00:33]}  Kf5 {[%clk 0:00:05]} 47. h4 {[%clk 0:00:31]}  Kg4 {[%clk 0:00:01]} 48. Ne6+ {[%clk 0:00:25]}  Kxh4 {[%clk 0:00:01]} 49. Nxf4 {[%clk 0:00:26]}  Rc3+ {[%clk 0:00:02]} 50. Kb7 {[%clk 0:00:26]}  Rc5 {[%clk 0:00:03]} 51. Kxa7 {[%clk 0:00:25]}  Rf5 {[%clk 0:00:03]} 52. Ne6 {[%clk 0:00:22]}  b5 {[%clk 0:00:03]} 53. Nd4 {[%clk 0:00:21]}  Rd5 {[%clk 0:00:02]} 54. Nf3+ {[%clk 0:00:21]}  Kh5 {[%clk 0:00:03]} 55. Kb6 {[%clk 0:00:21]}  Rf5 {[%clk 0:00:04]} 56. Nd4 {[%clk 0:00:21]}  Rf6+ {[%clk 0:00:04]} 57. Kxb5 {[%clk 0:00:21]}  Rf1 {[%clk 0:00:05]} 58. Kc5 {[%clk 0:00:21]}  Kh6 {[%clk 0:00:05]} 59. Kd5 {[%clk 0:00:21]}  Rd1 {[%clk 0:00:06]} 60. Rg2 {[%clk 0:00:20]}  Kh5 {[%clk 0:00:06]} 61. Ke5 {[%clk 0:00:21]}  Re1+ {[%clk 0:00:07]} 62. Kf4 {[%clk 0:00:20]}  Rf1+ {[%clk 0:00:07]} 63. Nf3 {[%clk 0:00:20]}  Kh6 {[%clk 0:00:07]} 64. Kg4 {[%clk 0:00:19]}  Kg7 {[%clk 0:00:08]} 65. Kf5+ {[%clk 0:00:19]}  Kf7 {[%clk 0:00:08]} 66. Rg3 {[%clk 0:00:20]}  Ke7 {[%clk 0:00:08]} 67. Ke5 {[%clk 0:00:19]}  Kd7 {[%clk 0:00:08]} 68. Kd5 {[%clk 0:00:20]}  Rd1+ {[%clk 0:00:08]} 69. Nd4 {[%clk 0:00:20]}  Ke7 {[%clk 0:00:09]} 70. Rf3 {[%clk 0:00:20]}  Rd2 {[%clk 0:00:09]} 71. Rf5 {[%clk 0:00:20]}  Rd1 {[%clk 0:00:09]} 72. Rf4 {[%clk 0:00:20]}  Kd7 {[%clk 0:00:09]} 73. Rf7+ {[%clk 0:00:20]}  Ke8 {[%clk 0:00:09]} 74. Ra7 {[%clk 0:00:21]}  Kf8 {[%clk 0:00:10]} 75. Ke5 {[%clk 0:00:21]}  Ke8 {[%clk 0:00:09]} 76. Nf5 {[%clk 0:00:20]}  Kd8 {[%clk 0:00:08]} 77. Nd6 {[%clk 0:00:19]}  Re1+ {[%clk 0:00:09]} 78. Kd5 {[%clk 0:00:19]}  Rd1+ {[%clk 0:00:09]} 79. Kc5 {[%clk 0:00:19]}  Rc1+ {[%clk 0:00:10]} 80. Nc4 {[%clk 0:00:20]}  Ke8 {[%clk 0:00:10]} 81. Kd5 {[%clk 0:00:20]}  Kd8 {[%clk 0:00:10]} 82. Ne5 {[%clk 0:00:19]}  Kc8 {[%clk 0:00:06]} 83. Rh7 {[%clk 0:00:18]}  Kd8 {[%clk 0:00:05]} 84. Kd6 {[%clk 0:00:17]}  Kc8 {[%clk 0:00:06]} 85. Nc6 {[%clk 0:00:16]}  Rd1+ {[%clk 0:00:06]} 86. Kc5 {[%clk 0:00:16]}  Rc1+ {[%clk 0:00:07]} 87. Kd5 {[%clk 0:00:17]}  Rd1+ {[%clk 0:00:07]} 88. Nd4 {[%clk 0:00:18]}  Rc1 {[%clk 0:00:07]} 89. Ke6 {[%clk 0:00:18]}  Rd1 {[%clk 0:00:06]} 90. Nb5 {[%clk 0:00:16]}  Kb8 {[%clk 0:00:04]} 91. Nd6 {[%clk 0:00:15]}  Rd2 {[%clk 0:00:04]} 92. Kd7 {[%clk 0:00:15]}  Rc2 {[%clk 0:00:04]} 93. Rh8+ {[%clk 0:00:13]}  Ka7 {[%clk 0:00:05]} 94. Rh3 {[%clk 0:00:12]}  Kb6 {[%clk 0:00:05]} 95. Rb3+ {[%clk 0:00:12]}  Kc5 {[%clk 0:00:05]} 96. Rb8 {[%clk 0:00:12]}  Kd4 {[%clk 0:00:06]} 97. Rc8 {[%clk 0:00:13]}  Rxc8 {[%clk 0:00:05]} 98. Nxc8 {[%clk 0:00:13]} 1/2-1/2


[Site "https://www.chess.com"]

[Event "Titled Tuesday Blitz March 01 Early 2022"]
[White "Warmerdam, Max"]
[Black "Sadhwani, Raunak"]
[WhiteFideId "1048104"]
[BlackFideId "35093487"]
[WhiteElo "2875"]
[BlackElo "2984"]
[Result "0-1"]
[Round "05"]
[TimeControl "180+1"]
[Date "2022.03.01"]
[WhiteClock "0:00:09"]
[BlackClock "0:00:21"]

1. e4 {[%clk 0:03:00]}  e5 {[%clk 0:03:00]} 2. Nf3 {[%clk 0:03:00]}  Nc6 {[%clk 0:03:01]} 3. Bb5 {[%clk 0:03:00]}  Nge7 {[%clk 0:03:01]} 4. Nc3 {[%clk 0:02:52]}  Ng6 {[%clk 0:03:00]} 5. d4 {[%clk 0:02:46]}  exd4 {[%clk 0:02:59]} 6. Nxd4 {[%clk 0:02:47]}  Bc5 {[%clk 0:02:56]} 7. Nf3 {[%clk 0:02:38]}  O-O {[%clk 0:02:54]} 8. O-O {[%clk 0:02:37]}  d6 {[%clk 0:02:53]} 9. h3 {[%clk 0:02:37]}  a6 {[%clk 0:02:47]} 10. Bxc6 {[%clk 0:02:36]}  bxc6 {[%clk 0:02:48]} 11. Nd4 {[%clk 0:02:37]}  Bd7 {[%clk 0:02:39]} 12. Be3 {[%clk 0:02:37]}  Re8 {[%clk 0:02:35]} 13. Nf5 {[%clk 0:02:00]}  Bxe3 {[%clk 0:02:18]} 14. Nxe3 {[%clk 0:02:01]}  Qg5 {[%clk 0:02:18]} 15. Kh1 {[%clk 0:01:56]}  Rab8 {[%clk 0:02:15]} 16. b3 {[%clk 0:01:54]}  h5 {[%clk 0:02:10]} 17. Qe2 {[%clk 0:01:45]}  a5 {[%clk 0:02:09]} 18. Rae1 {[%clk 0:01:41]}  h4 {[%clk 0:02:06]} 19. f4 {[%clk 0:01:34]}  Nxf4 {[%clk 0:01:25]} 20. Qf3 {[%clk 0:01:22]}  Nh5 {[%clk 0:01:25]} 21. Qxf7+ {[%clk 0:01:21]}  Kh8 {[%clk 0:00:59]} 22. Qxd7 {[%clk 0:01:21]}  Ng3+ {[%clk 0:00:58]} 23. Kg1 {[%clk 0:01:15]}  Nxf1 {[%clk 0:00:58]} 24. Nxf1 {[%clk 0:01:06]}  Qc5+ {[%clk 0:00:46]} 25. Re3 {[%clk 0:01:04]}  Rf8 {[%clk 0:00:46]} 26. Nd1 {[%clk 0:00:54]}  Rf4 {[%clk 0:00:25]} 27. e5 {[%clk 0:00:08]}  Rbf8 {[%clk 0:00:25]} 28. e6 {[%clk 0:00:09]}  Rxf1+ {[%clk 0:00:24]} 29. Kh2 {[%clk 0:00:09]}  Qf5 {[%clk 0:00:21]} 0-1


[Site "https://www.chess.com"]